bitfinex-derivatives/quotes_BNBF0:USTF0_20250406
["timestamp","ask_amount","ask_price","bid_price","bid_amount"]
[1743905129239,1.69,592.19,591.38,0.2923821]
[1743905129538,1.69,592.19,591.39,0.2923821]
[1743905129739,1.69,592.19,591.37,0.2923821]
[1743905129936,1.69,592.19,591.4,0.2923821]
[1743905130235,1.69,592.19,591.41,0.2923821]
[1743905130439,1.69,592.19,591.37,0.2923821]
[1743905131041,1.69,592.19,591.4,1.26423726]
[1743905131237,1.69,592.19,591.41,0.2923821]
[1743905132950,1.69,592.19,591.43,1.26423726]
[1743905133146,1.69,592.19,591.44,0.2923821]
[1743905134250,1.69,592.19,591.43,1.26423726]
[1743905134441,1.69,592.19,591.44,0.29238217]
[1743905135047,1.69,592.19,591.45,0.29238217]
[1743905135246,1.69,592.19,591.36,0.29238217]
[1743905135549,0.29394747,592.25,591.37,0.29238217]
[1743905135748,0.29394747,592.25,591.36,0.29238217]
[1743905135951,0.29394747,592.25,591.36,0.58623656]
[1743905136150,0.29394747,592.25,591.37,0.29238217]
[1743905136550,1.51618276,593.02,591.37,0.29238217]
[1743905136751,0.33726812,593.0,591.36,0.29238217]
[1743905136948,0.31042137,592.99,591.37,1.26423726]
[1743905137155,0.33728519,592.97,591.38,0.29238217]
[1743905137352,0.31042137,592.96,591.38,0.29238217]
[1743905137548,0.33730225,592.94,591.38,0.29238217]
[1743905137752,0.31042137,592.93,591.38,0.29238217]
[1743905138053,0.33731932,592.91,591.38,0.29238217]
[1743905138256,0.31042137,592.9,591.38,0.29238217]
[1743905138465,0.33733639,592.88,591.38,0.29238217]
[1743905138749,0.31042137,592.87,591.38,0.29238217]
[1743905138949,0.33735346,592.85,591.39,1.26423726]
[1743905139154,0.31042137,592.84,591.4,0.29238217]
[1743905139356,0.33737053,592.82,591.39,1.26423726]
[1743905139654,0.31042121,592.81,591.4,0.29237893]
[1743905139855,0.3373876,592.79,591.4,0.29237893]
[1743905140049,0.31042121,592.78,591.4,0.29237893]
[1743905140353,0.33740468,592.76,591.4,0.29237893]
[1743905140557,0.31042121,592.75,591.4,0.29237893]
[1743905140750,0.33742176,592.73,591.4,0.29237893]
[1743905140950,0.31042121,592.72,591.4,0.29237893]
[1743905141150,0.31042121,592.72,591.38,0.29387052]
[1743905141151,0.33743883,592.7,591.38,0.29387052]
[1743905141356,0.31041337,592.69,591.39,0.29237116]
[1743905141550,0.33745591,592.67,591.39,0.29237116]
[1743905141750,0.31041337,592.66,591.39,0.29237116]
[1743905141950,0.3374673,592.65,591.39,0.29237116]
[1743905142152,0.31041337,592.64,591.39,0.29237116]
[1743905142353,0.33747869,592.63,591.39,0.29237116]
[1743905142750,0.33747869,592.63,591.38,0.29387052]
[1743905142953,0.31040855,592.62,591.39,0.29236641]
[1743905143150,0.33749008,592.61,591.39,0.29236641]
[1743905143855,0.31040855,592.6,591.39,0.29236641]
[1743905144050,0.33750147,592.59,591.39,0.29236641]
[1743905145856,0.29388417,592.58,591.39,0.29236641]
[1743905146056,0.29388417,592.58,591.45,1.26423726]
[1743905146057,0.33751286,592.57,591.45,1.26423726]
[1743905146554,0.33751286,592.57,591.46,0.29237048]
[1743905147857,0.33751286,592.57,591.45,1.26423726]
[1743905148059,0.31041267,592.56,591.46,0.29237055]
[1743905148257,0.33752425,592.55,591.46,0.29237055]
[1743905148753,0.33752425,592.55,591.45,0.29237055]
[1743905148959,0.29389906,592.54,591.46,0.29237055]
[1743905149157,0.33753565,592.53,591.45,0.29237055]
[1743905149359,0.33753565,592.53,591.44,1.26423726]
[1743905149554,0.33753565,592.53,591.45,0.29237055]
[1743905150059,0.33753565,592.53,591.5,1.26423726]
[1743905150258,0.33753565,592.53,591.51,0.29237055]
[1743905150458,0.31041267,592.52,591.51,0.29237055]
[1743905150658,0.33754704,592.51,591.51,0.29237055]
[1743905151160,0.33754704,592.51,591.5,1.26423726]
[1743905151460,0.33754704,592.51,591.51,0.29237025]
[1743905151755,0.29389534,592.5,591.51,0.29237025]
[1743905151959,0.63144808,592.5,591.51,0.29237025]
[1743905152654,0.63144808,592.5,591.55,1.26423726]
[1743905152859,0.63144808,592.5,591.56,0.29237025]
[1743905154362,0.63144808,592.5,591.55,1.26423726]
[1743905154554,0.33755274,592.5,591.56,0.29236718]
[1743905155063,0.29388913,592.49,591.57,1.26423726]
[1743905155256,0.29388913,592.49,591.58,0.29236718]
[1743905157365,0.29388913,592.49,591.58,1.55660444]
[1743905157569,0.33755274,592.5,591.59,0.29236718]
[1743905157867,0.29388541,592.48,591.59,0.29236718]
[1743905159363,0.29388541,592.48,591.58,1.26423726]
[1743905159570,0.29388541,592.48,591.6,0.29237047]
[1743905159763,0.29388541,592.48,591.61,0.29237047]
[1743905160075,0.29388541,592.48,591.62,0.29237047]
[1743905160267,0.29388541,592.48,591.58,0.29237047]
[1743905160469,0.29388541,592.48,591.59,0.29237047]
[1743905160663,0.33755274,592.5,591.57,1.26423726]
[1743905160968,0.29388665,592.47,591.57,1.26423726]
[1743905161170,0.29388665,592.47,591.58,0.29236914]
[1743905163471,0.33755274,592.5,591.58,0.29236914]
[1743905163668,0.31042823,592.49,591.58,0.29236914]
[1743905163869,0.29388665,592.46,591.58,0.29236914]
[1743905164375,0.29388665,592.46,591.56,0.29236914]
[1743905165076,0.29388665,592.46,591.55,1.26423726]
[1743905165277,0.29388665,592.46,591.56,0.29238532]
[1743905166578,0.33755274,592.5,591.56,0.29238532]
[1743905166780,0.31042792,592.49,591.56,0.29238532]
[1743905167074,0.31042792,592.49,591.57,0.29238532]
[1743905167283,0.33755274,592.5,591.54,1.26423726]
[1743905167480,0.31042491,592.49,591.55,0.29238262]
[1743905167879,0.29389037,592.48,591.55,0.29238262]
[1743905169282,0.29389037,592.48,591.55,1.55661988]
[1743905169477,0.29389037,592.48,591.56,0.29238262]
[1743905169677,0.33755274,592.5,591.56,0.29238262]
[1743905169879,0.29390403,592.47,591.56,0.29238262]
[1743905170081,0.31043349,592.46,591.56,0.29238262]
[1743905170384,0.33758123,592.45,591.56,0.29238262]
[1743905170885,0.33758123,592.45,591.57,0.29239966]
[1743905171182,0.33758123,592.45,591.58,0.29239966]
[1743905171385,0.33758123,592.45,591.56,0.29239966]
[1743905171684,0.33758123,592.45,591.57,0.29239966]
[1743905171983,0.33758123,592.45,591.58,0.29239966]
[1743905172282,0.33758123,592.45,591.51,1.26423726]
[1743905172485,0.33758123,592.45,591.52,0.29239727]
[1743905172884,0.29391271,592.44,591.52,0.29239727]
[1743905173378,0.63149963,592.44,591.52,0.29239727]
[1743905173985,0.63149963,592.44,591.53,0.29240013]
[1743905174184,0.33759262,592.43,591.52,0.29240013]
[1743905174484,0.33759262,592.43,591.51,1.26423726]
[1743905175183,0.628,592.42,591.51,1.26423726]
[1743905175485,0.33760402,592.41,591.51,1.26423726]
[1743905175683,0.33760402,592.41,591.26,1.26423726]
[1743905175885,0.6315428,592.41,591.3,0.29243578]
[1743905176484,1.025,592.4,591.3,0.29243578]
[1743905176785,0.33761542,592.39,591.3,0.29243578]
[1743905177385,0.33761542,592.39,591.28,0.29396858]
[1743905177386,0.33761542,592.39,591.31,0.29243945]
[1743905177584,0.33761542,592.39,591.3,0.29243945]
[1743905177778,0.33761542,592.39,591.31,0.29243945]
[1743905177979,0.33761542,592.39,591.32,0.29243945]
[1743905178178,0.33761542,592.39,591.3,0.29243945]
[1743905178383,0.33761542,592.39,591.31,0.29243945]
[1743905178583,0.33761542,592.39,591.3,0.29243945]
[1743905178785,0.33761542,592.39,591.22,1.26423726]
[1743905178980,0.29396858,592.38,591.3,0.29243986]
[1743905179185,0.33762682,592.37,591.3,0.29243986]
[1743905179686,0.33762682,592.37,591.31,0.29244091]
[1743905179885,0.33762682,592.37,591.3,0.29244091]
[1743905180084,0.33762682,592.37,591.31,0.29244091]
[1743905180281,0.33762682,592.37,591.3,0.29244091]
[1743905180484,0.33762682,592.37,591.31,0.29244091]
[1743905180686,0.33762682,592.37,591.32,0.29243926]
[1743905180984,0.33762682,592.37,591.33,0.29243926]
[1743905181187,0.33762682,592.37,591.3,0.29243926]
[1743905181387,0.33762682,592.37,591.31,0.29243926]
[1743905181589,0.33762682,592.37,591.3,0.29243926]
[1743905181786,0.29397603,592.36,591.31,0.29243926]
[1743905181998,0.33763822,592.35,591.3,0.29243926]
[1743905182288,0.33763822,592.35,591.31,0.29243926]
[1743905182482,0.33763822,592.35,591.3,0.29243926]
[1743905182686,0.33763822,592.35,591.31,0.29243926]
[1743905182885,0.33763822,592.35,591.3,0.29243926]
[1743905184087,0.33763822,592.35,591.26,0.29397603]
[1743905184384,0.33763822,592.35,591.3,0.29243492]
[1743905184991,0.29397851,592.34,591.3,0.29243492]
[1743905185185,0.63162243,592.34,591.3,0.29243492]
[1743905185588,0.63162243,592.34,591.26,0.29397851]
[1743905185784,0.63162243,592.34,591.3,0.29243497]
[1743905185987,0.63162243,592.34,591.31,1.26423726]
[1743905186185,0.63162243,592.34,591.32,0.292435]
[1743905187286,0.63162243,592.34,591.31,1.26423726]
[1743905187485,0.33764392,592.34,591.32,0.29243977]
[1743905187791,0.29397851,592.33,591.32,0.29243977]
[1743905188187,0.29397851,592.33,591.31,0.29243977]
[1743905190788,0.29397851,592.33,591.32,0.29244655]
[1743905190992,0.29397851,592.33,591.3,0.29244655]
[1743905191192,0.29397851,592.33,591.31,0.29244655]
[1743905191393,0.29397851,592.33,591.3,0.29244655]
[1743905191606,0.29397851,592.33,591.31,0.29244655]
[1743905191796,0.29397851,592.33,591.3,0.29244655]
[1743905192092,0.29397851,592.33,591.31,0.29244655]
[1743905192297,0.29397851,592.33,591.28,1.26423726]
[1743905192498,0.93797851,592.33,591.32,0.29244137]
[1743905192697,0.93797851,592.33,591.33,0.29244137]
[1743905192893,0.93797851,592.33,591.3,0.29244137]
[1743905193097,0.93797851,592.33,591.31,1.26423726]
[1743905193298,0.93797851,592.33,591.32,0.29244137]
[1743905193501,0.644,592.33,591.32,0.29244137]
[1743905193794,0.29397975,592.32,591.32,0.29244137]
[1743905196596,0.644,592.33,591.32,0.29244137]
[1743905197002,0.29397975,592.31,591.32,0.29244137]
[1743905198806,0.29397975,592.31,591.31,1.26423726]
[1743905199004,0.29397975,592.31,591.33,0.29245459]
[1743905199205,0.29397975,592.31,591.34,0.29245459]
[1743905199510,0.644,592.33,591.32,0.29245459]
[1743905199701,0.644,592.33,591.3,0.29245459]
[1743905199902,0.29397975,592.3,591.31,0.29245459]
[1743905200105,0.29397975,592.3,591.3,0.29245459]
[1743905201810,0.882,592.29,591.3,0.29245459]
[1743905202011,0.882,592.29,591.3,1.55669185]
[1743905202208,0.882,592.29,591.31,0.29243029]
[1743905202910,0.29398596,592.28,591.31,0.29243029]
[1743905203708,0.29398596,592.28,591.3,1.26423726]
[1743905203906,0.29398596,592.28,591.32,0.29243029]
[1743905204110,0.29398596,592.28,591.33,0.29243029]
[1743905204310,0.29398596,592.28,591.32,1.26423726]
[1743905204509,0.29398596,592.28,591.33,0.29243029]
[1743905205507,0.882,592.29,591.33,0.29243029]
[1743905205911,0.29398348,592.28,591.33,0.29243029]
[1743905207107,0.29398348,592.28,591.34,0.29242969]
[1743905207310,0.29398348,592.28,591.35,0.29242969]
[1743905207612,0.29398348,592.28,591.36,0.29242969]
[1743905207806,0.29398348,592.28,591.33,0.29242969]
[1743905208010,0.29398348,592.28,591.32,1.26423726]
[1743905208011,0.29398348,592.28,591.34,0.29242969]
[1743905208214,0.29398348,592.28,591.33,0.29242969]
[1743905209416,0.29398348,592.28,591.35,1.26423726]
[1743905209916,0.29398348,592.28,591.36,0.29245676]
[1743905211517,0.882,592.29,591.38,1.26423726]
[1743905211715,0.882,592.29,591.39,0.29245676]
[1743905211917,0.29397975,592.27,591.39,0.29245676]
[1743905213014,0.854,592.26,591.4,1.26423726]
[1743905213318,0.854,592.26,591.41,0.29245676]
[1743905214220,0.854,592.26,591.4,1.26423726]
[1743905214421,0.854,592.26,591.41,0.29245001]
[1743905214820,0.29397727,592.25,591.41,0.29245001]
[1743905215319,0.29397727,592.25,591.42,1.26423726]
[1743905215520,0.29397727,592.25,591.43,0.29245001]
[1743905216719,0.29397727,592.25,591.42,1.26423726]
[1743905216919,0.29397727,592.25,591.43,0.29245319]
[1743905217521,0.854,592.26,591.43,0.29245319]
[1743905218019,0.29397478,592.24,591.44,0.29245319]
[1743905218220,0.29397478,592.24,591.42,0.29245319]
[1743905218421,0.29397478,592.24,591.43,0.29244627]
[1743905218620,0.29397478,592.24,591.42,0.29244627]
[1743905219523,0.29397478,592.24,591.37,0.29244627]
[1743905220126,0.29397478,592.24,591.36,1.26423726]
[1743905220320,0.29397478,592.24,591.37,0.29245536]
[1743905220524,0.854,592.26,591.37,0.29245536]
[1743905220724,0.854,592.26,591.36,1.26423726]
[1743905220918,0.29398223,592.23,591.37,0.29245848]
[1743905221224,0.29398223,592.23,591.36,1.26423726]
[1743905221425,0.29398223,592.23,591.37,0.29246147]
[1743905223528,0.854,592.26,591.37,0.29246147]
[1743905223731,0.669,592.22,591.37,0.29246147]
[1743905223928,0.96298223,592.22,591.35,0.29246147]
[1743905224128,0.96298223,592.22,591.36,0.29246147]
[1743905224323,0.96298223,592.22,591.37,0.29246147]
[1743905224526,0.96298223,592.22,591.35,0.29246147]
[1743905225723,0.96298223,592.22,591.35,1.55669873]
[1743905225928,0.96298223,592.22,591.36,0.29246147]
[1743905226526,0.669,592.22,591.36,0.29246147]
[1743905226927,0.29398844,592.21,591.36,0.29246147]
[1743905227628,0.29398844,592.21,591.35,1.26423726]
[1743905227829,0.29398844,592.21,591.36,0.29245509]
[1743905228332,0.29398844,592.21,591.35,1.26423726]
[1743905228529,0.29398844,592.21,591.36,0.29245832]
[1743905229629,0.669,592.22,591.36,0.29245832]
[1743905229825,0.29400831,592.2,591.36,0.29245832]
[1743905231532,0.29400831,592.2,591.36,1.55669558]
[1743905231726,0.29400831,592.2,591.37,0.29245832]
[1743905232536,0.669,592.22,591.37,0.29245832]
[1743905232934,0.29400707,592.19,591.37,0.29245832]
[1743905234031,0.29400707,592.19,591.36,0.29245832]
[1743905234230,0.29400707,592.19,591.37,0.29245832]
[1743905234429,0.29400707,592.19,591.36,0.29245832]
[1743905235536,0.669,592.22,591.36,0.29245832]
[1743905235837,0.29400831,592.18,591.36,0.29245832]
[1743905236439,0.29400831,592.18,591.34,0.29245832]
[1743905236641,0.29400831,592.18,591.35,0.29245832]
[1743905236835,0.29400831,592.18,591.34,0.29245832]
[1743905238140,0.29400831,592.18,591.34,1.55669558]
[1743905238437,0.29400831,592.18,591.35,0.29245832]
[1743905238635,0.669,592.22,591.35,0.29245832]
[1743905238935,0.29400956,592.17,591.35,0.29245832]
[1743905240943,0.29400956,592.17,591.35,1.55669558]
[1743905241139,0.29400956,592.17,591.36,0.29245832]
[1743905241537,0.669,592.22,591.36,0.29245832]
[1743905242041,0.29400831,592.16,591.36,0.29245832]
[1743905243544,0.29400831,592.16,591.34,0.29245832]
[1743905243739,0.29400831,592.16,591.35,0.29245832]
[1743905243939,0.29400831,592.16,591.33,1.26423726]
[1743905243940,0.29400831,592.16,591.34,0.29245832]
[1743905244139,0.29400831,592.16,591.35,0.29245832]
[1743905244438,0.29400831,592.16,591.33,1.26423726]
[1743905244439,0.29400831,592.16,591.34,0.29245832]
[1743905244745,0.669,592.22,591.33,1.26423726]
[1743905244746,0.669,592.22,591.35,0.29245832]
[1743905244944,0.2940108,592.15,591.34,0.29245832]
[1743905245239,0.669,592.22,591.35,0.29245832]
[1743905245444,0.669,592.22,591.36,0.29245832]
[1743905245640,0.669,592.22,591.3,0.29245832]
[1743905245840,0.669,592.22,591.31,0.29245832]
[1743905246042,0.29401577,592.21,591.3,0.29245832]
[1743905246238,0.29401577,592.21,591.31,0.29247486]
[1743905246439,0.29401577,592.21,591.32,0.29247486]
[1743905246641,0.29401577,592.21,591.3,0.29247486]
[1743905246845,0.29401577,592.21,591.31,0.29247486]
[1743905247038,0.29401577,592.21,591.3,0.29247486]
[1743905247545,0.29401577,592.21,591.26,1.26423726]
[1743905247839,0.29401577,592.21,591.3,0.29247497]
[1743905248243,0.29401577,592.21,591.26,1.26423726]
[1743905248446,0.29401577,592.21,591.3,0.29247498]
[1743905250549,0.33764392,592.34,591.3,0.29247498]
[1743905250947,0.29400831,592.2,591.3,0.29247498]
[1743905251348,0.984,592.2,591.3,0.29247498]
[1743905251947,0.2940257,592.19,591.3,0.29247498]
[1743905252447,0.2940257,592.19,591.15,0.29400831]
[1743905252647,0.2940257,592.19,591.31,0.29247205]
[1743905252846,0.2940257,592.19,591.3,0.29247205]
[1743905253142,0.2940257,592.19,591.31,0.29247205]
[1743905253346,0.2940257,592.19,591.3,0.29247205]
[1743905253544,0.984,592.2,591.31,0.29247205]
[1743905253747,0.984,592.2,591.3,0.29247205]
[1743905253948,0.2940257,592.18,591.31,0.29247205]
[1743905254147,0.2940257,592.18,591.3,0.29247205]
[1743905254349,0.2940257,592.18,591.31,0.29247206]
[1743905254548,0.2940257,592.18,591.32,0.29247206]
[1743905254845,0.2940257,592.18,591.33,0.29247206]
[1743905255043,0.2940257,592.18,591.3,0.29247206]
[1743905256549,0.984,592.2,591.3,0.29247206]
[1743905256850,0.2940257,592.17,591.3,0.29247206]
[1743905259553,0.984,592.2,591.3,0.29247206]
[1743905260054,0.2940257,592.16,591.3,0.29247206]
[1743905261357,0.2940257,592.16,591.32,1.26423726]
[1743905261555,0.2940257,592.16,591.33,0.29247206]
[1743905262557,0.984,592.2,591.33,0.29247206]
[1743905262858,0.29402198,592.15,591.33,0.29247206]
[1743905263056,0.29402198,592.15,591.34,0.29248097]
[1743905263255,0.29402198,592.15,591.33,0.29248097]
[1743905263455,0.29402198,592.15,591.34,0.29248097]
[1743905263652,0.29402198,592.15,591.33,0.29248097]
[1743905263860,0.29402198,592.15,591.35,0.29248097]
[1743905264153,0.29402198,592.15,591.36,0.29248097]
[1743905264353,0.29402198,592.15,591.34,0.29248097]
[1743905265554,0.984,592.2,591.34,0.29248097]
[1743905265853,0.29402073,592.14,591.34,0.29248097]
[1743905266658,0.29402073,592.14,591.35,1.26423726]
[1743905266855,0.29402073,592.14,591.36,0.29248097]
[1743905267257,0.29402073,592.14,591.37,0.2924769]
[1743905267454,0.29402073,592.14,591.36,0.2924769]
[1743905267654,0.29402073,592.14,591.38,0.2924769]
[1743905267852,0.29402073,592.14,591.35,1.26423726]
[1743905268057,0.29402073,592.14,591.36,0.29247488]
[1743905268560,0.984,592.2,591.36,0.29247488]
[1743905268859,0.29401825,592.13,591.36,0.29247488]
[1743905269060,0.29401825,592.13,591.36,1.55671214]
[1743905269260,0.984,592.2,591.37,0.29247488]
[1743905270060,0.29401701,592.19,591.37,0.29247488]
[1743905270962,0.29401701,592.19,591.38,1.26423726]
[1743905271155,0.29401701,592.19,591.39,0.29247488]
[1743905271562,0.984,592.2,591.39,0.29247488]
[1743905271862,0.29401452,592.18,591.39,0.29247488]
[1743905273165,0.29401452,592.18,591.39,1.55671214]
[1743905273465,0.29401452,592.18,591.4,0.29247488]
[1743905273865,0.29401452,592.18,591.39,1.26423726]
[1743905274066,0.29401452,592.18,591.4,0.29247458]
[1743905274567,0.984,592.2,591.4,0.29247458]
[1743905274965,0.29401328,592.17,591.4,0.29247458]
[1743905275464,0.29401328,592.17,591.39,1.26423726]
[1743905275667,0.29401328,592.17,591.4,0.29247427]
[1743905275966,0.29401328,592.17,591.41,0.29247427]
[1743905276267,0.29401328,592.17,591.42,0.29247427]
[1743905276468,0.29401328,592.17,591.34,0.29247427]
[1743905276669,0.29401328,592.17,591.35,0.29247427]
[1743905276868,0.29401328,592.17,591.34,0.29247427]
[1743905277064,0.29401328,592.17,591.33,1.26423726]
[1743905277270,0.29401328,592.17,591.34,0.29247458]
[1743905277565,0.29401328,592.17,591.34,1.55671184]
[1743905277769,0.29401328,592.17,591.35,0.29247458]
[1743905280371,0.29401328,592.17,591.34,1.26423726]
[1743905280570,0.984,592.2,591.35,0.29247689]
[1743905280972,0.29401949,592.16,591.34,0.29247689]
[1743905281172,0.29401949,592.16,591.36,0.29247689]
[1743905281368,0.29401949,592.16,591.37,0.29247689]
[1743905281571,0.29401949,592.16,591.34,0.29247689]
[1743905281872,0.29401949,592.16,591.35,0.29247689]
[1743905282067,0.29401949,592.16,591.34,0.29247689]
[1743905283375,0.29401949,592.16,591.35,0.29247891]
[1743905283675,0.29401949,592.16,591.36,0.29247891]
[1743905283870,0.29401949,592.16,591.34,0.29247891]
[1743905284074,0.29401949,592.16,591.35,0.29247891]
[1743905284274,0.29401949,592.16,591.36,0.29247891]
[1743905284476,0.29401949,592.16,591.34,0.29247891]
[1743905284676,0.696,592.15,591.35,0.29247891]
[1743905284977,0.696,592.15,591.36,0.29247504]
[1743905285378,0.696,592.15,591.39,1.26423726]
[1743905285577,0.696,592.15,591.4,0.29247504]
[1743905287279,0.696,592.15,591.4,1.5567123]
[1743905287477,0.696,592.15,591.41,0.29247504]
[1743905288178,0.696,592.15,591.4,1.26423726]
[1743905288478,0.696,592.15,591.41,0.29247138]
[1743905292683,0.696,592.15,591.42,0.29247138]
[1743905292883,0.29401949,592.14,591.43,0.29247138]
[1743905293191,0.29401949,592.14,591.44,0.29247138]
[1743905293480,0.29401949,592.14,591.4,0.29247138]
[1743905293683,0.29401949,592.14,591.41,0.29247138]
[1743905293884,0.29401949,592.14,591.4,0.29247138]
[1743905294780,0.29401949,592.14,591.39,1.26423726]
[1743905294983,0.29401949,592.14,591.4,0.29247199]
[1743905295588,0.696,592.15,591.4,0.29247199]
[1743905295882,0.29401949,592.13,591.4,0.29247199]
[1743905296783,0.29401949,592.13,591.29,0.3382435]
[1743905297184,0.29401949,592.13,591.3,0.29247717]
[1743905298682,0.984,592.2,591.3,0.29247717]
[1743905298882,0.2940257,592.12,591.3,0.29247717]
[1743905299188,0.984,592.2,591.3,0.29247717]
[1743905299687,0.984,592.2,591.29,0.3382435]
[1743905299882,0.984,592.2,591.3,0.29247168]
[1743905300085,0.2940257,592.19,591.3,0.29247168]
[1743905301384,0.9370257,592.19,591.3,0.29247168]
[1743905301581,0.643,592.19,591.3,0.29247168]
[1743905302487,0.29402694,592.18,591.3,0.29247168]
[1743905302985,0.29402694,592.18,591.29,1.60248076]
[1743905303190,0.29402694,592.18,591.3,0.29247169]
[1743905304590,0.643,592.19,591.3,0.29247169]
[1743905304889,0.29402694,592.17,591.3,0.29247169]
[1743905306191,0.29402694,592.17,591.29,1.60248076]
[1743905306391,0.29402694,592.17,591.3,0.29247152]
[1743905307094,0.29402694,592.17,591.31,0.29247195]
[1743905307296,0.29402694,592.17,591.3,0.29247195]
[1743905307492,0.29402694,592.17,591.31,0.29247195]
[1743905307690,0.643,592.19,591.3,0.29247195]
[1743905307894,0.29402694,592.16,591.31,0.29247195]
[1743905308192,0.29402694,592.16,591.32,1.55670921]
[1743905308388,0.29402694,592.16,591.33,0.29247195]
[1743905310597,0.643,592.19,591.33,0.29247195]
[1743905310798,0.643,592.19,591.33,1.55670921]
[1743905310998,0.643,592.19,591.34,0.29247195]
[1743905311899,0.29401949,592.18,591.34,0.29247195]
[1743905313299,0.29401949,592.18,591.37,1.26423726]
[1743905313493,0.29401949,592.18,591.38,0.29247195]
[1743905313694,0.33764392,592.34,591.38,0.29247195]
[1743905313896,1.11699589,592.17,591.38,0.29247195]
[1743905314299,0.823,592.17,591.38,0.29247195]
[1743905314599,0.823,592.17,591.37,1.26423726]
[1743905314799,0.823,592.17,591.38,0.29247092]
[1743905314994,0.29401701,592.16,591.38,0.29247092]
[1743905315402,0.29401701,592.16,591.4,1.26423726]
[1743905315599,0.975,592.15,591.41,0.29247092]
[1743905318000,0.29401577,592.14,591.4,1.26423726]
[1743905318200,0.29401577,592.14,591.41,0.29247199]
[1743905319604,0.975,592.15,591.41,0.29247199]
[1743905319902,0.975,592.15,591.42,0.29247199]
[1743905320104,0.975,592.15,591.35,0.29247199]
[1743905320298,0.29402322,592.14,591.36,0.29247199]
[1743905320509,0.29402322,592.14,591.37,0.29247199]
[1743905320709,0.29402322,592.14,591.35,0.29247199]
[1743905320907,0.29402322,592.14,591.36,0.29247199]
[1743905321107,0.29402322,592.14,591.35,0.29247199]
[1743905321407,0.29402322,592.14,591.36,0.29247199]
[1743905321607,0.29402322,592.14,591.35,0.29247199]
[1743905321809,0.29402322,592.14,591.34,0.29247199]
[1743905322112,0.29402322,592.14,591.35,0.29247199]
[1743905322312,0.29402322,592.14,591.34,0.29247199]
[1743905322616,0.975,592.15,591.34,0.29247199]
[1743905322915,0.29402446,592.13,591.34,0.29247199]
[1743905323516,0.29402446,592.13,591.34,1.55670925]
[1743905323710,0.29402446,592.13,591.35,0.29247199]
[1743905325621,0.975,592.15,591.35,0.29247199]
[1743905326923,0.29402322,592.14,591.35,0.29247199]
[1743905328724,0.975,592.15,591.35,0.29247199]
[1743905330028,0.29402322,592.14,591.35,0.29247199]
[1743905330628,0.29402322,592.14,591.4,1.26423726]
[1743905330824,0.29402322,592.14,591.41,0.29247199]
[1743905331029,0.29402322,592.14,591.4,1.26423726]
[1743905331230,0.29402322,592.14,591.41,0.29247167]
[1743905331630,0.975,592.15,591.41,0.29247167]
[1743905332333,0.29401577,592.14,591.41,0.29247167]
[1743905332527,0.94601577,592.14,591.41,0.29247167]
[1743905333631,0.94601577,592.14,591.41,1.55670893]
[1743905333836,0.94601577,592.14,591.42,0.29247167]
[1743905334334,0.94601577,592.14,591.41,1.26423726]
[1743905334532,0.94601577,592.14,591.42,0.29247137]
[1743905335936,0.94601577,592.14,591.41,1.26423726]
[1743905336137,0.94601577,592.14,591.42,0.29247198]
[1743905337739,0.94601577,592.14,591.41,1.26423726]
[1743905337938,0.94601577,592.14,591.42,0.29247155]
[1743905338736,0.94601577,592.14,591.37,0.29247155]
[1743905338940,0.94601577,592.14,591.38,0.29247155]
[1743905339136,0.94601577,592.14,591.37,0.29247155]
[1743905340641,0.652,592.14,591.37,0.29247155]
[1743905340841,0.652,592.14,591.36,1.26423726]
[1743905341041,0.29402198,592.13,591.35,1.26423726]
[1743905341344,0.29402198,592.13,591.36,0.29247134]
[1743905342239,0.29402198,592.13,591.35,1.26423726]
[1743905342542,0.29402198,592.13,591.36,0.29247232]
[1743905343247,0.29402198,592.13,591.3,0.29247232]
[1743905343647,0.652,592.14,591.3,0.29247232]
[1743905343945,0.29403067,592.12,591.3,0.29247232]
[1743905345146,0.717,592.11,591.3,0.29247232]
[1743905346949,0.2940344,592.1,591.3,0.29247232]
[1743905348750,0.2940344,592.1,591.29,0.3382435]
[1743905348951,0.2940344,592.1,591.3,0.29247222]
[1743905349661,0.717,592.11,591.3,0.29247222]
[1743905349954,0.2940344,592.09,591.3,0.29247222]
[1743905350351,0.2940344,592.09,591.29,0.3382435]
[1743905350552,0.2940344,592.09,591.3,0.29247222]
[1743905352054,0.2940344,592.09,591.29,0.3382435]
[1743905352254,0.2940344,592.09,591.3,0.29247222]
[1743905352654,0.717,592.11,591.3,0.29247222]
[1743905353153,0.2940344,592.1,591.3,0.29247222]
[1743905355250,0.2940344,592.1,591.29,0.3382435]
[1743905355454,0.2940344,592.1,591.3,0.29248277]
[1743905355655,0.717,592.11,591.3,0.29248277]
[1743905356054,0.2940344,592.09,591.3,0.29248277]
[1743905358660,0.717,592.11,591.29,0.3382435]
[1743905358861,0.717,592.11,591.3,0.29248309]
[1743905359059,0.2940344,592.08,591.3,0.29248309]